[Event "28th CRO-chT 1B-Men 2019"]
[Site "Mali Losinj"]
[Date "2019.10.04"]
[Round "7.18"]
[White "Brnas, Augustin"]
[Black "Zelic, Mladen"]
[Result "0-1"]
[ECO "C63"]
[WhiteElo "2200"]
[BlackElo "2209"]
[Annotator "NA"]
[PlyCount "60"]
[EventDate "2019.09.28"]
[EventType "team-tourn"]
[EventCountry "CRO"]
[SourceTitle "playchess.com"]
[Source "ChessBase"]
[SourceQuality "1"]
[TimeControl "40/5400+30:1800+30"]

1. e4 {[%emt 0:21:30]} e5 {[%emt 0:00:30]} 2. Nf3 {[%emt 0:00:30]} Nc6 {[%emt 0:00:00]} 3. Bb5 {[%emt 0:00:30]} f5 {[%emt 0:00:00]} 4. d3 {[%emt 0:00:30]} fxe4 {[%emt 0:00:30]} 5. dxe4 {[%emt 0:00:30]} Nf6 {[%emt 0:00:30]} 6. O-O {[%emt 0:00:00]} d6 {[%emt 0:01:30]} 7. Nc3 {[%emt 0:01:00]} Be7 {[%emt 0:03:30]} 8. Qd3 {[%emt 0:00:00]} O-O {[%emt 0:01:30]} 9. Qc4+ {[%emt 0:04:00]} Kh8 {[%emt 0:00:00]} 10. Ng5 {[%emt 0:00:30]} Nd4 {[%emt 0:05:00]} 11. Qd3 {[%emt 0:01:30]} Nh5 {[%emt 0:11:30]} 12. Nh3 {[%emt 0:05:30]} c6 {[%emt 0:03:30]} 13. Bc4 {[%emt 0:02:30]} b5 {[%emt 0:00:30]} 14. Bb3 {[%emt 0:00:00]} Nf3+ {[%emt 0:01:30]} 15. gxf3 {[%emt 0:02:00]} Bxh3 {[%emt 0:00:00]} 16. Re1 {[%emt 0:00:30]} Rf6 {[%emt 0:06:00]} 17. Ne2 {[%emt 0:00:00]} Rg6+ {[%emt 0:02:30]} 18. Kh1 {[%emt 0:02:00]} Bg2+ {[%emt 0:05:30]} 19. Kg1 {[%emt 0:00:30]} Qd7 {[%emt 0:05:30]} 20. Bf7 {[%emt 0:00:00]} Qh3 {[%emt 0:07:30]} 21. Ng3 {[%emt 0:02:00]} Nf4 {[%emt 0:06:30]} 22. Bxf4 {[%emt 0:00:30]} exf4 {[%emt 0:00:30]} 23. Bxg6 {[%emt 0:00:00]} hxg6 {[%emt 0:00:00]} 24. Re2 {[%emt 0:04:00]} Rf8 {[%emt 0:04:00]} 25. Rae1 {[%emt 0:03:30]} d5 {[%emt 0:04:30]} 26. exd5 {[%emt 0:00:00]} fxg3 {[%emt 0:00:30]} 27. fxg3 {[%emt 0:00:00]} Bc5+ {[%emt 0:00:00]} 28. Re3 {[%emt 0:00:30]} Bxf3 {[%emt 0:02:00]} 29. Qf1 {[%emt 0:01:30]} Qxf1+ {[%emt 0:00:30]} 30. Kxf1 {[%emt 0:00:30]} Bxd5+ {[%emt 0:00:00]} 0-1

[Event "28th CRO-chT 1B-Men 2019"]
[Site "Mali Losinj"]
[Date "2019.10.04"]
[Round "7.19"]
[White "Nagy, Gabor"]
[Black "Ivic, Velimir"]
[Result "0-1"]
[ECO "E62"]
[WhiteElo "2476"]
[BlackElo "2525"]
[Annotator "ChessBase"]
[PlyCount "56"]
[EventDate "2019.09.28"]
[EventType "team-tourn"]
[EventCountry "CRO"]
[SourceTitle "playchess.com"]
[Source "ChessBase"]
[SourceQuality "1"]
[TimeControl "40/5400+30:1800+30"]

1. d4 {[%emt 0:00:30]} Nf6 {[%emt 0:00:30]} 2. Nf3 {[%emt 0:00:00]} g6 {[%emt 0:00:00]} 3. g3 {[%emt 0:00:00]} Bg7 {[%emt 0:00:00]} 4. c4 {[%emt 0:00:30]} O-O {[%emt 0:00:30]} 5. Bg2 {[%emt 0:00:30]} d6 {[%emt 0:00:00]} 6. Nc3 {[%emt 0:00:30]} Nc6 {[%emt 0:00:00]} 7. O-O {[%emt 0:00:30]} e5 {[%emt 0:00:00]} 8. dxe5 {[%emt 0:00:30]} dxe5 {[%emt 0:00:00]} 9. Bg5 {[%emt 0:00:30]} Be6 {[%emt 0:00:30]} 10. Qa4 {[%emt 0:00:30]} Qc8 {[%emt 0:00:00]} 11. Bxf6 {[%emt 0:00:30]} Bxf6 {[%emt 0:00:00]} 12. Rad1 {[%emt 0:00:30]} Bg7 {[%emt 0:01:30]} 13. Ng5 {[%emt 0:00:30]} Bd7 {[%emt 0:01:30]} 14. e3 {[%emt 0:07:30]} Kh8 {[%emt 0:08:30]} 15. Nge4 {[%emt 0:01:30]} f5 {[%emt 0:04:30]} 16. Nc5 {[%emt 0:03:30]} Be8 {[%emt 0:01:30]} 17. Rd2 {[%emt 0:07:30]} e4 {[%emt 0:03:30]} 18. Nd5 {[%emt 0:00:30]} b6 {[%emt 0:10:30]} 19. Nxe4 {[%emt 0:03:30]} fxe4 {[%emt 0:02:30]} 20. Bxe4 {[%emt 0:00:00]} Ne5 {[%emt 0:03:30]} 21. Qd1 {[%emt 0:03:00]} c6 {[%emt 0:02:30]} 22. Nf4 {[%emt 0:00:30]} Nxc4 {[%emt 0:00:30]} 23. Rc2 {[%emt 0:00:30]} Ne5 {[%emt 0:01:30]} 24. Qd6 {[%emt 0:00:30]} Qd7 {[%emt 0:05:30]} 25. Rd1 {[%emt 0:01:30]} Rd8 {[%emt 0:07:30]} 26. Rcd2 {[%emt 0:01:30]} Qxd6 {[%emt 0:00:30]} 27. Rxd6 {[%emt 0:00:00]} Rxd6 {[%emt 0:01:30]} 28. Rxd6 {[%emt 0:00:00]} Bd7 {[%emt 0:06:30]} 0-1

[Event "28th CRO-chT 1B-Men 2019"]
[Site "Mali Losinj"]
[Date "2019.10.04"]
[Round "7.20"]
[White "Doric, Darko"]
[Black "Srbis, Jurica"]
[Result "1/2-1/2"]
[ECO "D03"]
[WhiteElo "2476"]
[BlackElo "2449"]
[Annotator "ChessBase"]
[PlyCount "121"]
[EventDate "2019.09.28"]
[EventType "team-tourn"]
[EventCountry "CRO"]
[SourceTitle "playchess.com"]
[Source "ChessBase"]
[SourceQuality "1"]
[TimeControl "40/5400+30:1800+30"]

1. d4 {[%emt 0:00:30]} Nf6 {[%emt 0:00:30]} 2. Bg5 {[%emt 0:00:30]} d5 {[%emt 0:00:00]} 3. e3 {[%emt 0:02:30]} c5 {[%emt 0:00:00]} 4. c3 {[%emt 0:04:30]} Nc6 {[%emt 0:03:30]} 5. Nd2 {[%emt 0:00:30]} e6 {[%emt 0:06:30]} 6. Ngf3 {[%emt 0:01:30]} h6 {[%emt 0:00:30]} 7. Bh4 {[%emt 0:00:30]} Bd6 {[%emt 0:00:30]} 8. Bd3 {[%emt 0:01:30]} b6 {[%emt 0:08:30]} 9. Qe2 {[%emt 0:03:30]} Bb7 {[%emt 0:05:30]} 10. e4 {[%emt 0:00:30]} Be7 {[%emt 0:01:30]} 11. e5 {[%emt 0:02:30]} Nd7 {[%emt 0:00:30]} 12. Bxe7 {[%emt 0:00:30]} Qxe7 {[%emt 0:00:30]} 13. a3 {[%emt 0:00:00]} Rc8 {[%emt 0:00:30]} 14. O-O {[%emt 0:01:00]} O-O {[%emt 0:04:30]} 15. Rfe1 {[%emt 0:01:30]} f5 {[%emt 0:02:30]} 16. exf6 {[%emt 0:03:30]} Rxf6 {[%emt 0:00:00]} 17. Rad1 {[%emt 0:04:30]} Nf8 {[%emt 0:03:00]} 18. Ne5 {[%emt 0:01:30]} cxd4 {[%emt 0:00:30]} 19. Nxc6 {[%emt 0:00:30]} Bxc6 {[%emt 0:00:30]} 20. cxd4 {[%emt 0:00:00]} Be8 {[%emt 0:01:30]} 21. g3 {[%emt 0:03:00]} Rf7 {[%emt 0:08:30]} 22. Nf3 {[%emt 0:04:30]} Qf6 {[%emt 0:00:30]} 23. Ne5 {[%emt 0:01:30]} Rfc7 {[%emt 0:00:30]} 24. h4 {[%emt 0:00:30]} Ba4 {[%emt 0:00:30]} 25. Rd2 {[%emt 0:01:30]} Rc1 {[%emt 0:03:30]} 26. Kg2 {[%emt 0:01:30]} R8c7 {[%emt 0:02:30]} 27. Qe3 {[%emt 0:01:30]} Rxe1 {[%emt 0:01:30]} 28. Qxe1 {[%emt 0:00:30]} Qd8 {[%emt 0:02:30]} 29. Re2 {[%emt 0:10:30]} Qe8 {[%emt 0:02:30]} 30. Re3 {[%emt 0:00:30]} Bc2 {[%emt 0:00:30]} 31. Bxc2 {[%emt 0:04:30]} Rxc2 {[%emt 0:00:30]} 32. Rf3 {[%emt 0:00:00]} Nd7 {[%emt 0:05:30]} 33. Nxd7 {[%emt 0:09:00]} Qxd7 {[%emt 0:00:30]} 34. Qe5 {[%emt 0:00:30]} Rc8 {[%emt 0:03:30]} 35. h5 {[%emt 0:05:30]} Rc6 {[%emt 0:04:30]} 36. Rf4 {[%emt 0:04:30]} Qd6 {[%emt 0:03:30]} 37. Qe3 {[%emt 0:00:30]} Qe7 {[%emt 0:01:30]} 38. Rg4 {[%emt 0:00:30]} Qf7 {[%emt 0:03:30]} 39. Qxh6 {[%emt 0:01:30]} Rc2 {[%emt 0:03:43]} 40. Qe3 {[%emt 0:00:00]} Qxh5 {[%emt 0:00:00]} 41. Qxe6+ Qf7 {[%emt 0:02:47]} 42. Qe3 {[%emt 0:04:30]} Rxb2 {[%emt 0:01:30]} 43. Rf4 {[%emt 0:00:00]} Qd7 {[%emt 0:00:30]} 44. Qe5 {[%emt 0:00:00]} Rc2 {[%emt 0:00:30]} 45. Rf5 {[%emt 0:04:30]} Rc3 {[%emt 0:00:30]} 46. Qf4 {[%emt 0:01:30]} Rc8 {[%emt 0:02:30]} 47. Qg5 {[%emt 0:00:30]} Rf8 {[%emt 0:10:30]} 48. Rxd5 {[%emt 0:03:30]} Qf7 {[%emt 0:01:30]} 49. f4 {[%emt 0:00:30]} Qb7 {[%emt 0:00:30]} 50. Kh2 {[%emt 0:00:30]} Qc6 {[%emt 0:01:30]} 51. Rd8 {[%emt 0:00:30]} Rxd8 {[%emt 0:00:30]} 52. Qxd8+ {[%emt 0:00:30]} Kf7 {[%emt 0:00:30]} 53. Qg5 {[%emt 0:06:30]} Qc2+ {[%emt 0:04:30]} 54. Kh3 {[%emt 0:00:30]} Qe4 {[%emt 0:00:30]} 55. Qh5+ {[%emt 0:03:30]} g6 {[%emt 0:02:30]} 56. Qd1 {[%emt 0:00:30]} Qd5 {[%emt 0:02:30]} 57. a4 {[%emt 0:13:30]} a6 {[%emt 0:00:30]} 58. g4 {[%emt 0:01:30]} b5 {[%emt 0:01:30]} 59. axb5 {[%emt 0:00:30]} axb5 {[%emt 0:00:30]} 60. Kg3 {[%emt 0:01:30]} b4 {[%emt 0:02:30]} 61. f5 {[%emt 0:06:09]} 1/2-1/2

[Event "28th CRO-chT 1B-Men 2019"]
[Site "Mali Losinj"]
[Date "2019.10.04"]
[Round "7.21"]
[White "Cop, Tomislav"]
[Black "Plenkovic, Zdenko"]
[Result "1/2-1/2"]
[ECO "B33"]
[WhiteElo "2349"]
[BlackElo "2368"]
[Annotator "NA"]
[PlyCount "135"]
[EventDate "2019.09.28"]
[EventType "team-tourn"]
[EventCountry "CRO"]
[SourceTitle "playchess.com"]
[Source "ChessBase"]
[SourceQuality "1"]
[TimeControl "40/5400+30:1800+30"]

1. e4 {[%emt 0:00:30]} c5 {[%emt 0:00:30]} 2. Nf3 {[%emt 0:00:30]} Nc6 {[%emt 0:00:00]} 3. d4 {[%emt 0:00:00]} cxd4 {[%emt 0:00:00]} 4. Nxd4 {[%emt 0:00:00]} Qb6 {[%emt 0:00:30]} 5. Nb3 {[%emt 0:00:30]} Nf6 {[%emt 0:01:30]} 6. Nc3 {[%emt 0:08:30]} e6 {[%emt 0:00:00]} 7. a3 {[%emt 0:02:30]} a6 {[%emt 0:00:00]} 8. Bf4 {[%emt 0:00:30]} e5 {[%emt 0:13:30]} 9. Bg5 {[%emt 0:03:30]} Be7 {[%emt 0:03:30]} 10. Qd2 {[%emt 0:00:30]} O-O {[%emt 0:06:30]} 11. Rd1 {[%emt 0:12:30]} d6 {[%emt 0:10:30]} 12. Bxf6 {[%emt 0:01:30]} Bxf6 {[%emt 0:00:00]} 13. Nd5 {[%emt 0:02:30]} Qd8 {[%emt 0:00:00]} 14. Nxf6+ {[%emt 0:04:30]} Qxf6 {[%emt 0:00:30]} 15. Bc4 {[%emt 0:03:30]} Qg6 {[%emt 0:06:30]} 16. f3 {[%emt 0:00:30]} Be6 {[%emt 0:02:30]} 17. Bxe6 {[%emt 0:01:30]} fxe6 {[%emt 0:00:30]} 18. O-O {[%emt 0:00:30]} Rad8 {[%emt 0:00:30]} 19. c4 {[%emt 0:02:30]} Qf7 {[%emt 0:02:30]} 20. Qd3 {[%emt 0:11:30]} Qc7 {[%emt 0:06:30]} 21. Qe3 {[%emt 0:03:30]} a5 {[%emt 0:02:30]} 22. a4 {[%emt 0:12:30]} Nb4 {[%emt 0:03:30]} 23. Rc1 {[%emt 0:02:30]} b6 {[%emt 0:00:30]} 24. Rc3 {[%emt 0:03:30]} Qc6 {[%emt 0:09:30]} 25. Ra1 {[%emt 0:02:30]} h6 {[%emt 0:03:30]} 26. Nd2 {[%emt 0:06:28]} Rf7 {[%emt 0:03:30]} 27. Nf1 {[%emt 0:01:40]} Na6 {[%emt 0:01:30]} 28. b3 {[%emt 0:00:50]} Qc5 {[%emt 0:01:30]} 29. Rd1 {[%emt 0:00:38]} Nb4 {[%emt 0:00:00]} 30. Rd2 {[%emt 0:02:58]} Rdd7 {[%emt 0:03:00]} 31. Ng3 {[%emt 0:01:10]} Kh7 {[%emt 0:04:03]} 32. h3 {[%emt 0:01:48]} Kg8 {[%emt 0:07:13]} 33. Nf1 {[%emt 0:00:18]} Nc6 {[%emt 0:01:35]} 34. Ng3 {[%emt 0:01:48]} Nd4 {[%emt 0:01:59]} 35. Kh1 {[%emt 0:01:56]} Nc6 {[%emt 0:04:05]} 36. Rcd3 {[%emt 0:00:33]} Qxe3 {[%emt 0:00:43]} 37. Rxe3 {[%emt 0:00:30]} Kf8 {[%emt 0:00:04]} 38. Ne2 {[%emt 0:00:35]} Ke7 {[%emt 0:00:12]} 39. Kg1 {[%emt 0:01:29]} Rf8 {[%emt 0:00:17]} 40. Red3 {[%emt 0:00:00]} Nb4 {[%emt 0:00:00]} 41. Re3 {[%emt 0:03:19]} Nc6 {[%emt 0:01:19]} 42. g3 {[%emt 0:04:30]} g5 {[%emt 0:05:30]} 43. Kg2 {[%emt 0:00:30]} Rdd8 {[%emt 0:01:30]} 44. Rd1 {[%emt 0:00:30]} Rf6 {[%emt 0:02:30]} 45. Red3 {[%emt 0:03:30]} h5 {[%emt 0:02:30]} 46. Rh1 {[%emt 0:07:05]} h4 {[%emt 0:04:51]} 47. g4 {[%emt 0:01:59]} Nb4 {[%emt 0:00:56]} 48. Re3 {[%emt 0:00:21]} Rdf8 {[%emt 0:01:12]} 49. Rd1 {[%emt 0:01:03]} Kd7 {[%emt 0:02:16]} 50. Rd2 {[%emt 0:01:07]} Ke7 {[%emt 0:02:31]} 51. Nc3 {[%emt 0:00:45]} Nc6 {[%emt 0:01:21]} 52. Nb5 {[%emt 0:00:37]} Nd4 {[%emt 0:04:33]} 53. Nxd4 {[%emt 0:00:14]} exd4 {[%emt 0:00:08]} 54. Rxd4 {[%emt 0:00:02]} e5 {[%emt 0:00:31]} 55. Rd5 {[%emt 0:00:37]} Kd7 {[%emt 0:00:31]} 56. Rb5 {[%emt 0:00:36]} Kc6 {[%emt 0:00:29]} 57. b4 {[%emt 0:04:48]} axb4 {[%emt 0:01:10]} 58. Rb3 {[%emt 0:01:13]} Ra8 {[%emt 0:00:28]} 59. R3xb4 {[%emt 0:03:03]} Ra6 {[%emt 0:00:05]} 60. Kf2 {[%emt 0:01:49]} Rf8 {[%emt 0:00:32]} 61. Ke2 {[%emt 0:01:09]} Rfa8 {[%emt 0:01:31]} 62. Kd2 {[%emt 0:01:27]} Kc7 {[%emt 0:00:33]} 63. Ke3 {[%emt 0:03:07]} Rxa4 {[%emt 0:00:45]} 64. Rxb6 {[%emt 0:00:06]} Rxb4 {[%emt 0:00:06]} 65. Rxb4 {[%emt 0:00:02]} Ra3+ {[%emt 0:00:07]} 66. Kf2 {[%emt 0:00:55]} Ra2+ {[%emt 0:00:06]} 67. Kg1 {[%emt 0:00:15]} Ra1+ {[%emt 0:00:05]} 68. Kg2 {[%emt 0:01:04]} 1/2-1/2

[Event "28th CRO-chT 1B-Men 2019"]
[Site "Mali Losinj"]
[Date "2019.10.04"]
[Round "7.22"]
[White "Rade, Miroslav"]
[Black "Petrusic, Toni"]
[Result "1/2-1/2"]
[ECO "C06"]
[WhiteElo "2390"]
[BlackElo "2272"]
[Annotator "NA"]
[PlyCount "70"]
[EventDate "2019.09.28"]
[EventType "team-tourn"]
[EventCountry "CRO"]
[SourceTitle "playchess.com"]
[Source "ChessBase"]
[SourceQuality "1"]
[TimeControl "40/5400+30:1800+30"]

1. e4 {[%emt 0:02:30]} e6 {[%emt 0:00:30]} 2. d4 {[%emt 0:00:30]} d5 {[%emt 0:00:00]} 3. Nd2 {[%emt 0:00:30]} Nf6 {[%emt 0:00:00]} 4. e5 {[%emt 0:00:00]} Nfd7 {[%emt 0:00:00]} 5. c3 {[%emt 0:00:00]} c5 {[%emt 0:00:00]} 6. Bd3 {[%emt 0:00:30]} Nc6 {[%emt 0:00:00]} 7. Ne2 {[%emt 0:00:00]} cxd4 {[%emt 0:00:00]} 8. cxd4 {[%emt 0:00:00]} f6 {[%emt 0:00:00]} 9. exf6 {[%emt 0:00:30]} Nxf6 {[%emt 0:00:00]} 10. O-O {[%emt 0:00:30]} Bd6 {[%emt 0:00:30]} 11. Nf3 {[%emt 0:00:00]} O-O {[%emt 0:00:00]} 12. Bf4 {[%emt 0:00:00]} Bxf4 {[%emt 0:00:00]} 13. Nxf4 {[%emt 0:00:30]} Ng4 {[%emt 0:00:00]} 14. g3 {[%emt 0:00:30]} g5 {[%emt 0:05:00]} 15. Ng2 {[%emt 0:00:30]} Qf6 {[%emt 0:00:30]} 16. Be2 {[%emt 0:00:00]} Nh6 {[%emt 0:03:30]} 17. Qd2 {[%emt 0:00:00]} Nf5 {[%emt 0:27:30]} 18. Rad1 {[%emt 0:04:30]} h6 {[%emt 0:10:30]} 19. Ne3 {[%emt 0:21:30]} a6 {[%emt 0:04:30]} 20. h4 {[%emt 0:02:30]} gxh4 {[%emt 0:14:30]} 21. Nxf5 {[%emt 0:00:30]} exf5 {[%emt 0:00:30]} 22. Nxh4 {[%emt 0:00:30]} f4 {[%emt 0:01:30]} 23. Bf3 {[%emt 0:00:30]} Be6 {[%emt 0:01:30]} 24. Ng2 {[%emt 0:00:30]} fxg3 {[%emt 0:05:30]} 25. fxg3 {[%emt 0:00:00]} Qg7 {[%emt 0:02:30]} 26. Nf4 {[%emt 0:01:00]} Qxg3+ {[%emt 0:03:30]} 27. Qg2 {[%emt 0:00:00]} Qxg2+ {[%emt 0:00:30]} 28. Bxg2 {[%emt 0:00:00]} Bf7 {[%emt 0:01:57]} 29. Nxd5 {[%emt 0:00:30]} Rad8 {[%emt 0:10:45]} 30. Nc3 {[%emt 0:18:30]} Rxd4 {[%emt 0:06:38]} 31. Bxc6 {[%emt 0:02:30]} Rxd1 {[%emt 0:00:04]} 32. Rxd1 {[%emt 0:00:30]} bxc6 {[%emt 0:00:06]} 33. Rd6 {[%emt 0:00:00]} Rb8 {[%emt 0:03:19]} 34. b3 {[%emt 0:02:00]} Bxb3 {[%emt 0:00:38]} 35. axb3 {[%emt 0:00:30]} Rxb3 {[%emt 0:00:03]} 1/2-1/2

[Event "28th CRO-chT 1B-Men 2019"]
[Site "Mali Losinj"]
[Date "2019.10.04"]
[Round "7.23"]
[White "Machata, Martin"]
[Black "Polok, Kacper"]
[Result "1-0"]
[ECO "A10"]
[WhiteElo "2179"]
[BlackElo "2301"]
[Annotator "NA"]
[PlyCount "49"]
[EventDate "2019.09.28"]
[EventType "team-tourn"]
[EventCountry "CRO"]
[SourceTitle "playchess.com"]
[Source "ChessBase"]
[SourceQuality "1"]
[TimeControl "40/5400+30:1800+30"]

1. Nf3 {[%emt 0:01:30]} e6 {[%emt 0:00:30]} 2. g3 {[%emt 0:00:30]} f5 {[%emt 0:03:30]} 3. Bg2 {[%emt 0:00:00]} Nf6 {[%emt 0:00:30]} 4. O-O {[%emt 0:00:00]} Be7 {[%emt 0:00:00]} 5. c4 {[%emt 0:00:00]} O-O {[%emt 0:01:00]} 6. Nc3 {[%emt 0:00:00]} d6 {[%emt 0:00:00]} 7. d3 {[%emt 0:00:30]} e5 {[%emt 0:10:00]} 8. b4 {[%emt 0:00:00]} a5 {[%emt 0:13:30]} 9. b5 {[%emt 0:00:00]} Nbd7 {[%emt 0:00:30]} 10. e3 {[%emt 0:00:30]} Qe8 {[%emt 0:07:30]} 11. Ba3 {[%emt 0:03:30]} Qh5 {[%emt 0:05:30]} 12. Nd2 {[%emt 0:12:30]} Qh6 {[%emt 0:02:30]} 13. Re1 {[%emt 0:05:30]} Nc5 {[%emt 0:05:30]} 14. Qc2 {[%emt 0:06:30]} f4 {[%emt 0:14:30]} 15. Nd5 {[%emt 0:08:30]} Ng4 {[%emt 0:04:30]} 16. Nxe7+ {[%emt 0:04:30]} Kh8 {[%emt 0:00:00]} 17. Nf3 {[%emt 0:13:30]} fxg3 {[%emt 0:07:00]} 18. fxg3 {[%emt 0:00:30]} Nxd3 {[%emt 0:01:30]} 19. Re2 {[%emt 0:11:30]} e4 {[%emt 0:01:30]} 20. Nh4 {[%emt 0:01:30]} Nxe3 {[%emt 0:02:56]} 21. Qd2 {[%emt 0:00:30]} Qf6 {[%emt 0:01:31]} 22. Bb2 {[%emt 0:10:16]} Qxe7 {[%emt 0:00:30]} 23. Rxe3 {[%emt 0:01:04]} Qg5 {[%emt 0:04:28]} 24. Rxd3 {[%emt 0:00:32]} Qc5+ {[%emt 0:01:22]} 25. Bd4 {[%emt 0:00:40]} 1-0

[Event "28th CRO-chT 1B-Men 2019"]
[Site "Mali Losinj"]
[Date "2019.10.04"]
[Round "7.24"]
[White "Susak, Zeljko"]
[Black "Babic, Zvonko"]
[Result "1-0"]
[ECO "B23"]
[WhiteElo "2191"]
[BlackElo "2173"]
[Annotator "NA"]
[PlyCount "67"]
[EventDate "2019.09.28"]
[EventType "team-tourn"]
[EventCountry "CRO"]
[SourceTitle "playchess.com"]
[Source "ChessBase"]
[SourceQuality "1"]
[TimeControl "40/5400+30:1800+30"]

1. e4 {[%emt 0:00:30]} c5 {[%emt 0:00:30]} 2. Nc3 {[%emt 0:00:00]} e6 {[%emt 0:00:30]} 3. f4 {[%emt 0:00:00]} a6 {[%emt 0:00:30]} 4. d3 {[%emt 0:01:30]} Nc6 {[%emt 0:00:30]} 5. Nf3 {[%emt 0:00:30]} d5 {[%emt 0:01:30]} 6. Be2 {[%emt 0:08:30]} dxe4 {[%emt 0:02:30]} 7. Nxe4 {[%emt 0:01:30]} Nf6 {[%emt 0:00:30]} 8. O-O {[%emt 0:05:30]} Be7 {[%emt 0:03:30]} 9. c3 {[%emt 0:04:30]} Qc7 {[%emt 0:03:30]} 10. Nxf6+ {[%emt 0:11:30]} Bxf6 {[%emt 0:02:30]} 11. Be3 {[%emt 0:00:30]} Ne7 {[%emt 0:02:30]} 12. Ng5 {[%emt 0:04:30]} Nd5 {[%emt 0:06:30]} 13. Bd2 {[%emt 0:00:30]} O-O {[%emt 0:02:30]} 14. Ne4 {[%emt 0:03:30]} Be7 {[%emt 0:00:30]} 15. Qe1 {[%emt 0:03:30]} b5 {[%emt 0:04:30]} 16. Qg3 {[%emt 0:02:30]} Rb8 {[%emt 0:02:30]} 17. Kh1 {[%emt 0:13:30]} Bd7 {[%emt 0:03:30]} 18. Rac1 {[%emt 0:09:30]} Rfd8 {[%emt 0:03:30]} 19. c4 {[%emt 0:00:30]} Nf6 {[%emt 0:11:30]} 20. Bc3 {[%emt 0:01:30]} Kf8 {[%emt 0:06:30]} 21. Be5 {[%emt 0:00:30]} Qa5 {[%emt 0:02:30]} 22. Bxb8 {[%emt 0:01:30]} Rxb8 {[%emt 0:01:30]} 23. f5 {[%emt 0:01:30]} Rd8 {[%emt 0:00:30]} 24. fxe6 {[%emt 0:04:30]} Bxe6 {[%emt 0:01:30]} 25. Ng5 {[%emt 0:02:46]} Qxa2 {[%emt 0:01:30]} 26. Nxe6+ {[%emt 0:01:15]} fxe6 {[%emt 0:00:00]} 27. Rb1 {[%emt 0:09:41]} Bd6 {[%emt 0:06:00]} 28. Qh3 {[%emt 0:00:14]} Ke7 {[%emt 0:00:30]} 29. Bg4 {[%emt 0:00:34]} e5 {[%emt 0:08:30]} 30. Bc8 {[%emt 0:00:39]} Kf8 {[%emt 0:04:26]} 31. Qe6 {[%emt 0:05:12]} Be7 {[%emt 0:01:30]} 32. Bxa6 {[%emt 0:01:15]} b4 {[%emt 0:01:36]} 33. Bb7 {[%emt 0:00:45]} Rxd3 {[%emt 0:07:10]} 34. Bd5 {[%emt 0:00:39]} 1-0

[Event "28th CRO-chT 1B-Men 2019"]
[Site "Mali Losinj"]
[Date "2019.10.05"]
[Round "8.1"]
[White "Sedlak, Nikola"]
[Black "Vavulin, Maxim"]
[Result "0-1"]
[ECO "E12"]
[WhiteElo "2557"]
[BlackElo "2550"]
[Annotator "ChessBase"]
[PlyCount "130"]
[EventDate "2019.09.28"]
[EventType "team-tourn"]
[EventCountry "CRO"]
[SourceTitle "playchess.com"]
[Source "ChessBase"]
[SourceQuality "1"]
[TimeControl "40/5400+30:1800+30"]

1. d4 {[%emt 0:00:30]} Nf6 {[%emt 0:00:30]} 2. c4 {[%emt 0:00:00]} e6 {[%emt 0:00:00]} 3. Nf3 {[%emt 0:00:00]} b6 {[%emt 0:00:00]} 4. Bf4 {[%emt 0:00:30]} Bb7 {[%emt 0:01:30]} 5. e3 {[%emt 0:00:30]} g6 {[%emt 0:02:30]} 6. h3 {[%emt 0:00:30]} Bg7 {[%emt 0:00:30]} 7. Nc3 {[%emt 0:00:30]} O-O {[%emt 0:00:30]} 8. Be2 {[%emt 0:00:30]} Ne4 {[%emt 0:03:30]} 9. Nxe4 {[%emt 0:00:30]} Bxe4 {[%emt 0:00:00]} 10. O-O {[%emt 0:00:30]} d6 {[%emt 0:00:00]} 11. Rc1 {[%emt 0:01:30]} Nd7 {[%emt 0:04:30]} 12. Nd2 {[%emt 0:05:30]} Bb7 {[%emt 0:00:00]} 13. Bf3 {[%emt 0:00:30]} Bxf3 {[%emt 0:01:00]} 14. Nxf3 {[%emt 0:00:30]} h6 {[%emt 0:15:30]} 15. Qa4 {[%emt 0:05:30]} f5 {[%emt 0:06:30]} 16. Qc6 {[%emt 0:01:30]} Nf6 {[%emt 0:07:30]} 17. c5 {[%emt 0:03:30]} Ne4 {[%emt 0:01:30]} 18. Rfd1 {[%emt 0:03:30]} g5 {[%emt 0:08:30]} 19. Bh2 {[%emt 0:01:30]} bxc5 {[%emt 0:09:30]} 20. dxc5 {[%emt 0:00:00]} Bxb2 {[%emt 0:00:00]} 21. Rb1 {[%emt 0:05:00]} Rb8 {[%emt 0:17:46]} 22. cxd6 {[%emt 0:03:30]} cxd6 {[%emt 0:00:24]} 23. Bxd6 {[%emt 0:04:30]} Rb6 {[%emt 0:00:25]} 24. Qc2 {[%emt 0:03:30]} Rxd6 {[%emt 0:00:20]} 25. Rxd6 {[%emt 0:00:30]} Qxd6 {[%emt 0:00:05]} 26. Rxb2 {[%emt 0:04:30]} h5 {[%emt 0:08:48]} 27. Nd4 {[%emt 0:00:30]} g4 {[%emt 0:05:44]} 28. hxg4 {[%emt 0:01:30]} hxg4 {[%emt 0:00:03]} 29. Qc4 {[%emt 0:03:30]} Kf7 {[%emt 0:02:54]} 30. Rb7+ {[%emt 0:21:30]} Kf6 {[%emt 0:00:04]} 31. Rh7 {[%emt 0:00:00]} Rb8 {[%emt 0:01:45]} 32. Qc2 {[%emt 0:01:00]} Kg6 {[%emt 0:01:26]} 33. Rc7 {[%emt 0:00:30]} g3 {[%emt 0:01:03]} 34. fxg3 {[%emt 0:02:30]} Qxg3 {[%emt 0:00:36]} 35. Nf3 {[%emt 0:00:30]} Nf2 {[%emt 0:01:58]} 36. Rc4 {[%emt 0:03:30]} Nh3+ {[%emt 0:00:24]} 37. Kh1 {[%emt 0:00:30]} Nf2+ {[%emt 0:00:06]} 38. Kg1 {[%emt 0:00:00]} Rh8 {[%emt 0:01:05]} 39. Nh4+ {[%emt 0:01:00]} Rxh4 {[%emt 0:00:23]} 40. Rxh4 {[%emt 0:00:00]} Qxh4 {[%emt 0:00:00]} 41. Qxf2 {[%emt 0:00:00]} Qb4 {[%emt 0:08:41]} 42. Qg3+ {[%emt 0:01:30]} Kf6 {[%emt 0:00:30]} 43. Kh2 {[%emt 0:00:30]} a5 {[%emt 0:03:33]} 44. Kh3 {[%emt 0:05:30]} Qa4 {[%emt 0:08:45]} 45. Qc7 {[%emt 0:02:30]} Qg4+ {[%emt 0:04:31]} 46. Kh2 {[%emt 0:00:30]} Qh4+ {[%emt 0:00:17]} 47. Kg1 {[%emt 0:00:00]} Qe1+ {[%emt 0:00:03]} 48. Kh2 {[%emt 0:00:00]} Qd2 {[%emt 0:00:19]} 49. a3 {[%emt 0:01:30]} Qd5 {[%emt 0:04:44]} 50. Kh3 {[%emt 0:00:30]} a4 {[%emt 0:01:17]} 51. Qf4 {[%emt 0:02:30]} Qb3 {[%emt 0:00:28]} 52. Qd4+ {[%emt 0:00:30]} Kg6 {[%emt 0:00:32]} 53. Qc5 {[%emt 0:01:30]} f4 {[%emt 0:01:01]} 54. Kg4 {[%emt 0:00:30]} fxe3 {[%emt 0:00:10]} 55. Qg5+ {[%emt 0:07:30]} Kf7 {[%emt 0:00:01]} 56. Qf4+ {[%emt 0:00:30]} Ke8 {[%emt 0:00:13]} 57. Kf3 {[%emt 0:00:30]} Qxa3 {[%emt 0:01:26]} 58. Qb8+ {[%emt 0:00:30]} Kd7 {[%emt 0:00:08]} 59. Qb7+ {[%emt 0:00:30]} Kd6 {[%emt 0:00:07]} 60. Qb6+ {[%emt 0:00:30]} Kd5 {[%emt 0:00:39]} 61. Qb5+ {[%emt 0:00:30]} Kd4 {[%emt 0:00:54]} 62. Qd7+ {[%emt 0:01:30]} Kc3 {[%emt 0:00:54]} 63. Qxe6 {[%emt 0:04:30]} Kd2 {[%emt 0:00:34]} 64. Qd5+ {[%emt 0:01:30]} Ke1 {[%emt 0:00:30]} 65. Qa5+ {[%emt 0:00:30]} Kf1 {[%emt 0:00:15]} 0-1